{"text_format":"1","workbook":"xlsx","n_sheets":1,"sheets":["Patterns_Rules"],"not_rendered":{"charts":0,"images":0,"macros":1,"external_links":0,"defined_names":2,"comments":0,"pivot_tables":0},"unopened":[],"bounds":{"document_bytes":16777216,"sheet_cells":100000,"rows_first":2000,"rows_last":500,"rows_between":2000,"halvings":0,"cell_chars":16384,"cell_head_chars":4096},"cells_cut":0,"cells_raw":0,"read":"whole","date_system":"1900"}

{"sheet":"Patterns_Rules","index":0,"n_rows":53,"n_cols":63,"rows_kept":53,"cut":false,"hidden":false,"merged":[[1,1,5,42],[57,13,57,26],[55,13,55,26],[7,3,12,22]]}
[]
[null,"Level 2 - Linear Patterns 1                                                                                                                                                                   Created by Mr.Lafferty@mathsrevision.com   "]
[]
[]
[]
[]
[]
[null,null,null,"For each pattern:-                                          (i)   Fill in the missing numbers                                     (ii)  Find the rule."]
[]
[]
[]
[]
[]
[]
[null,null,null,null,null,null,null,null,null,null,null,null,null,null,null,null,null,null,null,null,null,null,null,null,null,null,null,null,null,null,null,null,null,null,null,null,null,null,null,null,null,null,null,null,null,null,null,null,null,null,null,{"$f":"IF(AZ16<0,\"-\",\"+\")","v":"-"},"a",1,2,3,4,5,6,7,8,9,10]
[null,null,"Q1.",null,null,null,null,null,{"$f":"BA15","v":"a"},1,2,3,4,5,6,7,8,9,10,null,null,null,null,null,null,null,null,null,null,null,null,null,null,null,null,null,null,null,null,null,null,null,null,null,null,null,null,null,null,null,{"$f":"IF(AZ16<0,(-AZ16),AZ16)","v":3},{"$f":"(BB16-(BC16-BB16)*BB15)","v":-3},"b",{"$f":"ROUND(RAND()*(3-1)+1,0)","v":2},{"$f":"BB16+$AZ$17","v":7},{"$f":"BC16+$AZ$17","v":12},17,22,27,32,37,42,47]
[null,null,null,null,null,null,null,null,{"$f":"BA16","v":"b"},{"$f":"BB16","v":2},{"$f":"BC16","v":7},{"$f":"BD16","v":12},null,null,null,null,null,null,null,null,null,null,"Rule is",null,null,null,null,"=",null,null,null,null,null,null,null,null,null,null,null,null,null,null,null,null,null,null,null,null,null,null,null,{"$f":"ROUND(RAND()*(9-1)+1,0)","v":5}]
[]
[null,null,null,null,null,null,null,null,null,null,null,null,null,null,null,null,null,null,null,null,null,null,null,null,null,null,null,null,null,null,null,null,null,null,null,null,null,null,null,null,null,null,null,null,null,null,null,null,null,null,null,{"$f":"IF(AZ20<0,\"-\",\"+\")","v":"-"},"w",1,2,3,4,5,6,7,8,9,10]
[null,null,"Q2.",null,null,null,null,null,{"$f":"BA19","v":"w"},1,2,3,4,5,6,7,8,9,10,null,null,null,null,null,null,null,null,null,null,null,null,null,null,null,null,null,null,null,null,null,null,null,null,null,null,null,null,null,null,null,{"$f":"IF(AZ20<0,(-AZ20),AZ20)","v":3},{"$f":"(BB20-(BC20-BB20)*BB19)","v":-3},"y",{"$f":"ROUND(RAND()*(6-4)+4,0)","v":5},{"$f":"BB20+$AZ$21","v":13},{"$f":"BC20+$AZ$21","v":21},29,37,45,53,61,69,77]
[null,null,null,null,null,null,null,null,{"$f":"BA20","v":"y"},{"$f":"BB20","v":5},{"$f":"BC20","v":13},{"$f":"BD20","v":21},null,null,null,null,null,null,null,null,null,null,"Rule is",null,null,null,null,"=",null,null,null,null,null,null,null,null,null,null,null,null,null,null,null,null,null,null,null,null,null,null,null,{"$f":"ROUND(RAND()*(9-1)+1,0)","v":8}]
[]
[null,null,null,null,null,null,null,null,null,null,null,null,null,null,null,null,null,null,null,null,null,null,null,null,null,null,null,null,null,null,null,null,null,null,null,null,null,null,null,null,null,null,null,null,null,null,null,null,null,null,null,{"$f":"IF(AZ24<0,\"-\",\"+\")","v":"+"},"m",1,2,3,4,5,6,7,8,9,10]
[null,null,"Q3.",null,null,null,null,null,{"$f":"BA23","v":"m"},1,2,3,4,5,6,7,8,9,10,null,null,null,null,null,null,null,null,null,null,null,null,null,null,null,null,null,null,null,null,null,null,null,null,null,null,null,null,null,null,null,{"$f":"IF(AZ24<0,(-AZ24),AZ24)","v":0},{"$f":"(BB24-(BC24-BB24)*BB23)","v":0},"k",{"$f":"ROUND(RAND()*(6-4)+4,0)","v":5},{"$f":"BB24+$AZ$25","v":10},{"$f":"BC24+$AZ$25","v":15},20,25,30,35,40,45,{"$f":"BJ24+$AZ$25","v":50}]
[null,null,null,null,null,null,null,null,{"$f":"BA24","v":"k"},{"$f":"BB24","v":5},{"$f":"BC24","v":10},{"$f":"BD24","v":15},null,null,null,null,null,null,null,null,null,null,"Rule is",null,null,null,null,"=",null,null,null,null,null,null,null,null,null,null,null,null,null,null,null,null,null,null,null,null,null,null,null,{"$f":"ROUND(RAND()*(9-1)+1,0)","v":5}]
[]
[null,null,null,null,null,null,null,null,null,null,null,null,null,null,null,null,null,null,null,null,null,null,null,null,null,null,null,null,null,null,null,null,null,null,null,null,null,null,null,null,null,null,null,null,null,null,null,null,null,null,null,{"$f":"IF(AZ28<0,\"-\",\"+\")","v":"+"},"r",1,2,3,4,5,6,7,8,9,10]
[null,null,"Q4.",null,null,null,null,null,{"$f":"BA27","v":"r"},1,2,3,4,5,6,7,8,9,10,null,null,null,null,null,null,null,null,null,null,null,null,null,null,null,null,null,null,null,null,null,null,null,null,null,null,null,null,null,null,null,{"$f":"IF(AZ28<0,(-AZ28),AZ28)","v":2},{"$f":"(BB28-(BC28-BB28)*BB27)","v":2},"c",{"$f":"ROUND(RAND()*(9-7)+7,0)","v":7},{"$f":"BB28+$AZ$29","v":12},{"$f":"BC28+$AZ$29","v":17},22,27,32,37,42,47,52]
[null,null,null,null,null,null,null,null,{"$f":"BA28","v":"c"},{"$f":"BB28","v":7},{"$f":"BC28","v":12},{"$f":"BD28","v":17},null,null,null,null,null,null,null,null,null,null,"Rule is",null,null,null,null,"=",null,null,null,null,null,null,null,null,null,null,null,null,null,null,null,null,null,null,null,null,null,null,null,{"$f":"ROUND(RAND()*(9-1)+1,0)","v":5}]
[]
[null,null,null,null,null,null,null,null,null,null,null,null,null,null,null,null,null,null,null,null,null,null,null,null,null,null,null,null,null,null,null,null,null,null,null,null,null,null,null,null,null,null,null,null,null,null,null,null,null,null,null,{"$f":"IF(AZ32<0,\"-\",\"+\")","v":"+"},"z",1,2,3,4,5,6,7,8,9,10]
[null,null,"Q5.",null,null,null,null,null,{"$f":"BA31","v":"z"},1,2,3,4,5,6,7,8,9,10,null,null,null,null,null,null,null,null,null,null,null,null,null,null,null,null,null,null,null,null,null,null,null,null,null,null,null,null,null,null,null,{"$f":"IF(AZ32<0,(-AZ32),AZ32)","v":5},{"$f":"(BB32-(BC32-BB32)*BB31)","v":5},"y",{"$f":"ROUND(RAND()*(9-7)+7,0)","v":8},{"$f":"BB32+$AZ$33","v":11},{"$f":"BC32+$AZ$33","v":14},17,20,23,26,29,32,35]
[null,null,null,null,null,null,null,null,{"$f":"BA32","v":"y"},{"$f":"BB32","v":8},{"$f":"BC32","v":11},{"$f":"BD32","v":14},null,null,null,null,null,null,null,null,null,null,"Rule is",null,null,null,null,"=",null,null,null,null,null,null,null,null,null,null,null,null,null,null,null,null,null,null,null,null,null,null,null,{"$f":"ROUND(RAND()*(9-1)+1,0)","v":3}]
[]
[null,null,null,null,null,null,null,null,null,null,null,null,null,null,null,null,null,null,null,null,null,null,null,null,null,null,null,null,null,null,null,null,null,null,null,null,null,null,null,null,null,null,null,null,null,null,null,null,null,null,null,{"$f":"IF(AZ36<0,\"-\",\"+\")","v":"+"},"f",1,2,3,4,5,6,7,8,9,10]
[null,null,"Q6.",null,null,null,null,null,{"$f":"BA35","v":"f"},1,2,3,4,5,6,7,8,9,10,null,null,null,null,null,null,null,null,null,null,null,null,null,null,null,null,null,null,null,null,null,null,null,null,null,null,null,null,null,null,null,{"$f":"IF(AZ36<0,(-AZ36),AZ36)","v":0},{"$f":"(BB36-(BC36-BB36)*BB35)","v":0},"n",{"$f":"ROUND(RAND()*(10-1)+1,0)","v":5},{"$f":"BB36+$AZ$37","v":10},{"$f":"BC36+$AZ$37","v":15},20,25,30,35,40,45,50]
[null,null,null,null,null,null,null,null,{"$f":"BA36","v":"n"},{"$f":"BB36","v":5},{"$f":"BC36","v":10},{"$f":"BD36","v":15},null,null,null,null,null,null,null,null,null,null,"Rule is",null,null,null,null,"=",null,null,null,null,null,null,null,null,null,null,null,null,null,null,null,null,null,null,null,null,null,null,null,{"$f":"ROUND(RAND()*(9-1)+1,0)","v":5}]
[]
[null,null,null,null,null,null,null,null,null,null,null,null,null,null,null,null,null,null,null,null,null,null,null,null,null,null,null,null,null,null,null,null,null,null,null,null,null,null,null,null,null,null,null,null,null,null,null,null,null,null,null,{"$f":"IF(AZ40<0,\"-\",\"+\")","v":"-"},"a",1,2,3,4,5,6,7,8,9,10]
[null,null,"Q7.",null,null,null,null,null,{"$f":"BA39","v":"a"},1,2,3,4,5,6,7,8,9,10,null,null,null,null,null,null,null,null,null,null,null,null,null,null,null,null,null,null,null,null,null,null,null,null,null,null,null,null,null,null,null,{"$f":"IF(AZ40<0,(-AZ40),AZ40)","v":1},{"$f":"(BB40-(BC40-BB40)*BB39)","v":-1},"z",{"$f":"ROUND(RAND()*(10-1)+1,0)","v":3},{"$f":"BB40+$AZ$41","v":7},{"$f":"BC40+$AZ$41","v":11},15,19,23,27,31,35,39]
[null,null,null,null,null,null,null,null,{"$f":"BA40","v":"z"},{"$f":"BB40","v":3},{"$f":"BC40","v":7},{"$f":"BD40","v":11},null,null,null,null,null,null,null,null,null,null,"Rule is",null,null,null,null,"=",null,null,null,null,null,null,null,null,null,null,null,null,null,null,null,null,null,null,null,null,null,null,null,{"$f":"ROUND(RAND()*(9-1)+1,0)","v":4}]
[]
[null,null,null,null,null,null,null,null,null,null,null,null,null,null,null,null,null,null,null,null,null,null,null,null,null,null,null,null,null,null,null,null,null,null,null,null,null,null,null,null,null,null,null,null,null,null,null,null,null,null,null,{"$f":"IF(AZ44<0,\"-\",\"+\")","v":"+"},"e",1,2,3,4,5,6,7,8,9,10]
[null,null,"Q8.",null,null,null,null,null,{"$f":"BA43","v":"e"},1,2,3,4,5,6,7,8,9,10,null,null,null,null,null,null,null,null,null,null,null,null,null,null,null,null,null,null,null,null,null,null,null,null,null,null,null,null,null,null,null,{"$f":"IF(AZ44<0,(-AZ44),AZ44)","v":3},{"$f":"(BB44-(BC44-BB44)*BB43)","v":3},"h",{"$f":"ROUND(RAND()*(11-1)+1,0)","v":5},{"$f":"BB44+$AZ$45","v":7},{"$f":"BC44+$AZ$45","v":9},11,13,15,17,19,21,23]
[null,null,null,null,null,null,null,null,{"$f":"BA44","v":"h"},{"$f":"BB44","v":5},{"$f":"BC44","v":7},{"$f":"BD44","v":9},null,null,null,null,null,null,null,null,null,null,"Rule is",null,null,null,null,"=",null,null,null,null,null,null,null,null,null,null,null,null,null,null,null,null,null,null,null,null,null,null,null,{"$f":"ROUND(RAND()*(9-1)+1,0)","v":2}]
[]
[null,null,null,null,null,null,null,null,null,null,null,null,null,null,null,null,null,null,null,null,null,null,null,null,null,null,null,null,null,null,null,null,null,null,null,null,null,null,null,null,null,null,null,null,null,null,null,null,null,null,null,{"$f":"IF(AZ48<0,\"-\",\"+\")","v":"+"},"k",1,2,3,4,5,6,7,8,9,10]
[null,null,"Q9.",null,null,null,null,null,{"$f":"BA47","v":"k"},1,2,3,4,5,6,7,8,9,10,null,null,null,null,null,null,null,null,null,null,null,null,null,null,null,null,null,null,null,null,null,null,null,null,null,null,null,null,null,null,null,{"$f":"IF(AZ48<0,(-AZ48),AZ48)","v":3},{"$f":"(BB48-(BC48-BB48)*BB47)","v":3},"v",{"$f":"ROUND(RAND()*(11-1)+1,0)","v":10},{"$f":"BB48+$AZ$49","v":17},{"$f":"BC48+$AZ$49","v":24},31,38,45,52,59,66,73]
[null,null,null,null,null,null,null,null,{"$f":"BA48","v":"v"},{"$f":"BB48","v":10},{"$f":"BC48","v":17},{"$f":"BD48","v":24},null,null,null,null,null,null,null,null,null,null,"Rule is",null,null,null,null,"=",null,null,null,null,null,null,null,null,null,null,null,null,null,null,null,null,null,null,null,null,null,null,null,{"$f":"ROUND(RAND()*(9-1)+1,0)","v":7}]
[]
[null,null,null,null,null,null,null,null,null,null,null,null,null,null,null,null,null,null,null,null,null,null,null,null,null,null,null,null,null,null,null,null,null,null,null,null,null,null,null,null,null,null,null,null,null,null,null,null,null,null,null,{"$f":"IF(AZ52<0,\"-\",\"+\")","v":"+"},"z",1,2,3,4,5,6,7,8,9,10]
[null,null,"Q10.",null,null,null,null,null,{"$f":"BA51","v":"z"},1,2,3,4,5,6,7,8,9,10,null,null,null,null,null,null,null,null,null,null,null,null,null,null,null,null,null,null,null,null,null,null,null,null,null,null,null,null,null,null,null,{"$f":"IF(AZ52<0,(-AZ52),AZ52)","v":9},{"$f":"(BB52-(BC52-BB52)*BB51)","v":9},"y",{"$f":"ROUND(RAND()*(11-1)+1,0)","v":10},{"$f":"BB52+$AZ$53","v":11},{"$f":"BC52+$AZ$53","v":12},13,14,15,16,17,18,19]
[null,null,null,null,null,null,null,null,{"$f":"BA52","v":"y"},{"$f":"BB52","v":10},{"$f":"BC52","v":11},{"$f":"BD52","v":12},null,null,null,null,null,null,null,null,null,null,"Rule is",null,null,null,null,"=",null,null,null,null,null,null,null,null,null,null,null,null,null,null,null,null,null,null,null,null,null,null,null,{"$f":"ROUND(RAND()*(9-1)+1,0)","v":1}]